bitfinex-derivatives/quotes_ETHF0:USTF0_20250114
["timestamp","ask_amount","ask_price","bid_price","bid_amount"]
[1736894142853,0.30984,3228.6,3228.5,4.915596]
[1736894143054,3.2078,3228.9,3228.5,4.605766]
[1736894143256,3.51761,3228.9,3228.8,1.15107954]
[1736894146472,3.2078,3228.9,3228.8,1.15107954]
[1736894146763,0.3098,3229.0,3228.9,0.30981]
[1736894146961,0.3098,3229.0,3228.9,4.66868954]
[1736894147162,3.54556917,3229.0,3228.9,4.66868954]
[1736894147964,0.3098,3229.0,3228.9,4.66868954]
[1736894148369,1.2399,3229.1,3229.0,0.3098]
[1736894148869,1.2399,3229.1,3229.0,0.8025]
[1736894149464,0.4707,3229.1,3229.0,0.8025]
[1736894149768,0.4707,3229.1,3229.0,2.4996]
[1736894153469,0.4707,3229.1,3229.0,5.7074]
[1736894153870,0.78049,3229.1,3229.0,5.7074]
[1736894156975,0.78049,3229.1,3229.0,4.9145]
[1736894157176,0.78049,3229.1,3229.0,5.2243]
[1736894158764,0.78049,3229.1,3229.0,2.0165]
[1736894163279,0.78049,3229.1,3229.0,5.2243]
[1736894172582,0.78049,3229.1,3229.0,2.0165]
[1736894175086,0.4707,3229.1,3229.0,2.0165]
[1736894175586,0.4707,3229.1,3229.0,2.4744]
[1736894179382,0.4707,3229.1,3229.0,5.6822]
[1736894180483,0.78049,3229.1,3229.0,5.6822]
[1736894181389,0.4707,3229.1,3229.0,5.6822]
[1736894184290,0.78049,3229.1,3229.0,5.6822]
[1736894184793,0.78049,3229.1,3229.0,5.2243]
[1736894186082,0.78049,3229.1,3229.0,2.0165]
[1736894186287,0.4707,3229.1,3229.0,1.5238]
[1736894186589,0.78049,3229.1,3229.0,3.15597954]
[1736894187984,0.78049,3229.1,3229.0,7.98466943]
[1736894190591,0.78049,3229.1,3229.0,15.19488764]
[1736894190794,0.4707,3229.1,3229.0,16.34596718]
[1736894191096,0.4707,3229.1,3229.0,15.19488764]
[1736894191498,0.4707,3229.1,3229.0,10.36619775]
[1736894192093,0.4707,3229.1,3229.0,13.57399775]
[1736894192394,0.4707,3229.1,3229.0,20.81703259]
[1736894194007,0.4707,3229.1,3229.0,17.60923259]
[1736894194199,0.4707,3229.1,3229.0,20.81703259]
[1736894197705,0.78049,3229.1,3229.0,20.81703259]
[1736894197904,0.4707,3229.1,3229.0,20.81703259]
[1736894201217,0.4707,3229.1,3229.0,17.60923259]
[1736894201409,0.4707,3229.1,3229.0,20.81703259]
[1736894204716,0.4707,3229.1,3229.0,21.26783259]
[1736894205310,0.4707,3229.1,3229.0,14.02479775]
[1736894207716,0.4707,3229.1,3229.0,21.28157607]
[1736894209419,0.4707,3229.1,3229.0,14.02479775]
[1736894212227,5.00490515,3229.4,3229.0,13.71499775]
[1736894212429,0.79105,3229.6,3229.5,0.30975]
[1736894212616,0.79105,3229.6,3229.5,1.46082954]
[1736894212617,0.4813,3229.6,3229.5,1.46082954]
[1736894213317,0.4813,3229.6,3229.5,17.1375974]
[1736894214929,0.4813,3229.6,3229.5,17.38599109]
[1736894215431,0.4813,3229.6,3229.5,14.9647073]
[1736894216130,0.4813,3229.6,3229.5,7.75448909]
[1736894216825,0.4803,3229.8,3229.7,0.30973]
[1736894217019,0.4803,3229.8,3229.7,1.46080954]
[1736894219231,0.4803,3229.8,3229.7,4.66860954]
[1736894221632,0.77699,3230.1,3230.0,0.3097]
[1736894221933,0.4673,3230.1,3230.0,1.46077954]
[1736894224831,0.449,3230.3,3230.2,0.30968]
[1736894225029,0.449,3230.3,3230.2,2.67375954]
[1736894225225,0.76275,3230.6,3230.2,2.36407954]
[1736894225430,1.70045,3230.6,3230.5,1.46072954]
[1736894225834,1.3908,3230.6,3230.5,1.46072954]
[1736894226227,1.70044,3230.6,3230.5,1.46072954]
[1736894226424,1.3908,3230.6,3230.5,1.46072954]
[1736894226622,3.2078,3231.0,3230.5,1.15107954]
[1736894226933,0.9377,3231.0,3230.9,1.46068954]
[1736894227532,0.9377,3231.0,3230.9,2.67368954]
[1736894227733,0.4709,3231.0,3230.9,2.67368954]
[1736894228929,0.7805,3231.0,3230.9,2.67368954]
[1736894229129,0.9493,3231.4,3231.0,0.30959]
[1736894229334,0.30958,3231.3,3231.2,1.15107954]
[1736894243336,0.30958,3231.2,3231.1,1.6839]
[1736894243536,0.30958,3231.2,3231.1,2.83497954]
[1736894246241,0.30958,3231.2,3231.1,1.6839]
[1736894246444,0.30958,3231.2,3231.1,2.83497954]
[1736894246750,0.30958,3231.2,3231.1,1.6839]
[1736894247041,0.30958,3231.2,3231.1,2.83497954]
[1736894247242,0.30958,3231.2,3231.1,1.6839]
[1736894247439,0.30958,3231.2,3231.1,2.83497954]
[1736894248942,0.30958,3231.2,3231.1,1.62297954]
[1736894273258,0.30958,3231.2,3231.1,1.93256954]
[1736894273552,0.30958,3231.2,3231.1,1.62297954]
[1736894273960,0.30958,3231.2,3231.1,1.93256954]
[1736894276366,0.30958,3231.2,3231.1,1.62297954]
[1736894277260,0.30958,3231.2,3231.1,1.93256954]
[1736894277869,0.30958,3231.2,3231.1,2.42526954]
[1736894278066,0.30958,3231.2,3231.1,2.11567954]
[1736894278364,0.30958,3231.2,3231.1,2.42526954]
[1736894279171,0.4825,3231.4,3231.1,2.11567954]
[1736894279366,0.30958,3231.3,3231.2,0.30958]
[1736894279770,0.30958,3231.3,3231.2,0.77718]
[1736894280976,0.30958,3231.3,3231.2,1.98918]
[1736894281171,0.30958,3231.3,3231.2,3.14025954]
[1736894281675,0.30958,3231.3,3231.2,2.36307954]
[1736894282781,0.30958,3231.3,3231.2,2.67265954]
[1736894287579,4.6216,3231.7,3231.1,5.30159422]
[1736894287876,0.78008,3231.2,3231.1,5.30159422]
[1736894288575,0.30958,3231.2,3231.1,5.30159422]
[1736894288879,0.30958,3231.2,3231.1,5.61118422]
[1736894289769,0.30958,3231.2,3231.1,6.76226376]
[1736894289970,0.30958,3231.2,3231.1,7.25806376]
[1736894292880,0.30958,3231.2,3231.1,6.10698422]
[1736894297080,1.24437,3231.6,3231.1,5.79739422]
[1736894297277,1.24437,3231.6,3231.2,0.4542]
[1736894297481,0.30958,3231.3,3231.2,0.76378]
[1736894297986,0.30958,3231.3,3231.2,1.91485954]
[1736894298173,0.4705,3231.6,3231.2,1.60527954]
[1736894298378,0.78005,3231.6,3231.5,1.15107954]
[1736894298677,0.4705,3231.6,3231.5,1.46063954]
[1736894298877,0.78005,3231.6,3231.5,1.46063954]
[1736894299676,0.78005,3231.6,3231.5,1.91363954]
[1736894304083,0.4705,3231.6,3231.5,1.91363954]
[1736894304887,0.78005,3231.6,3231.5,1.91363954]
[1736894307194,0.4705,3231.6,3231.5,1.91363954]
[1736894307395,0.30955,3231.7,3231.6,0.30953]
[1736894308981,0.30955,3231.7,3231.6,1.52053]
[1736894313698,0.002,3232.0,3231.9,0.30952]
[1736894313896,0.4901,3232.0,3231.9,1.46059954]
[1736894314093,0.79961,3232.0,3231.9,1.46059954]
[1736894314894,1.29541,3232.0,3231.9,1.46059954]
[1736894320699,1.29541,3232.0,3231.9,1.71191613]
[1736894321200,1.29541,3232.0,3231.9,1.46059954]
[1736894323099,0.002,3232.0,3231.9,1.46059954]
[1736894324297,0.31151,3232.0,3231.9,1.46059954]
[1736894333201,0.002,3232.0,3231.9,1.46059954]
[1736894335810,0.002,3232.0,3231.9,2.61167908]
[1736894336210,0.002,3232.0,3231.9,1.46059954]
[1736894336710,0.002,3232.0,3231.9,1.92129954]
[1736894337612,0.002,3232.0,3231.9,3.07237908]
[1736894338306,0.002,3232.0,3231.9,1.92129954]
[1736894340000,0.9485,3232.6,3231.9,3.07237908]
[1736894340200,0.79737,3232.5,3232.4,0.30946]
[1736894341611,0.79737,3232.5,3232.4,1.46053954]
[1736894342208,0.79737,3232.5,3232.4,0.30946]
[1736894342409,0.79737,3232.5,3232.4,1.46053954]
[1736894348910,0.79737,3232.5,3232.4,1.15107954]
[1736894349109,0.30948,3232.3,3232.2,2.67156954]
[1736894349309,0.30948,3232.3,3232.2,2.36207954]
[1736894349510,0.30948,3232.3,3232.2,1.15107954]
[1736894352330,0.3095,3232.1,3232.0,3.2078]
[1736894353029,1.2529,3232.1,3232.0,3.2078]
[1736894354530,0.30951,3232.0,3231.9,1.15107954]
[1736894355632,0.30951,3232.0,3231.9,1.46059954]
[1736894355827,0.30951,3232.0,3231.9,1.15107954]
[1736894356235,0.30951,3232.0,3231.9,1.46059954]
[1736894356735,0.30951,3232.0,3231.9,1.15107954]
[1736894356937,0.30951,3232.0,3231.9,1.46059954]
[1736894365438,0.30951,3232.0,3231.9,1.15107954]
[1736894365739,0.30951,3232.0,3231.9,1.46059954]
[1736894366445,1.25291,3232.1,3232.0,0.30951]
[1736894366930,1.25291,3232.1,3232.0,0.79361]
[1736894374934,1.54698,3233.3,3232.0,0.79361]
[1736894375141,0.30944,3232.7,3232.6,1.46052954]
[1736894377546,0.30944,3232.8,3232.7,0.30943]
[1736894378137,0.30944,3232.8,3232.6,1.63687954]
[1736894378138,3.6751,3232.9,3232.6,1.63687954]
[1736894378449,3.98453,3232.9,3232.8,0.30943]
[1736894378651,0.77673,3232.9,3232.8,1.46050954]
[1736894379345,0.30941,3233.1,3233.0,0.3094]
[1736894380043,3.2078,3233.3,3233.0,1.15107954]
[1736894380245,0.3094,3233.2,3233.1,0.30939]
[1736894380547,0.3094,3233.2,3233.1,0.77509]
[1736894380548,3.819741,3233.2,3233.1,0.77509]
[1736894383544,0.3094,3233.2,3233.1,0.77509]
[1736894387655,0.3094,3233.2,3233.1,0.4657]
[1736894387856,0.3094,3233.2,3233.1,0.7751]
[1736894388649,0.3094,3233.2,3233.1,1.2508]
[1736894391145,3.2078,3233.5,3233.1,0.9414]
[1736894391455,0.30939,3233.3,3233.2,1.46045954]
[1736894400360,0.30939,3233.3,3233.1,0.9414]
[1736894400361,0.4648,3233.6,3233.1,2.1514]
[1736894400563,0.30939,3233.2,3233.1,0.4757]
[1736894400865,0.3094,3233.1,3233.0,2.36107954]
[1736894401055,1.3667,3233.1,3232.4,0.9117]
[1736894401256,0.30943,3232.8,3232.7,3.51724]
[1736894401460,0.30943,3232.8,3232.7,4.35887954]
[1736894401864,0.30943,3232.8,3232.7,4.66831954]
[1736894402158,0.30943,3232.8,3232.7,3.2078]
[1736894402360,4.08900716,3232.8,3232.5,1.15107954]
[1736894402567,0.30945,3232.6,3232.5,1.15107954]
[1736894403262,0.30945,3232.6,3232.2,4.00898]
[1736894403263,0.30948,3232.3,3232.2,4.00898]
[1736894403458,0.30948,3232.3,3232.2,5.16005954]
[1736894403661,0.9208,3232.5,3232.2,4.85057954]
[1736894403862,1.23027,3232.5,3232.4,1.46054954]
[1736894404066,1.23027,3232.5,3232.4,1.15107954]
[1736894407263,1.23027,3232.5,3232.4,1.53083641]
[1736894409673,0.9208,3232.5,3232.2,3.6995]
[1736894409873,1.23026,3232.5,3232.4,1.15107954]
[1736894410171,1.23026,3232.5,3232.4,1.53071664]
[1736894411371,1.23026,3232.5,3232.4,1.15107954]
[1736894419875,1.23026,3232.5,3232.4,1.46054954]
[1736894420775,0.30946,3232.5,3232.4,1.46054954]
[1736894425872,0.77666,3232.6,3232.5,0.30946]
[1736894426074,0.77666,3232.6,3232.5,0.77416]
[1736894426274,4.0405934,3232.6,3232.5,0.77416]
[1736894427383,0.77666,3232.6,3232.5,0.77416]
[1736894427686,0.30946,3232.6,3232.5,0.77416]
[1736894428485,0.30945,3232.7,3232.6,0.30944]
[1736894428677,0.30945,3232.7,3232.6,1.46051954]
[1736894429876,1.26356,3233.0,3232.6,1.46051954]
[1736894429877,0.49,3233.0,3232.6,4.35887954]
[1736894430081,0.30943,3232.9,3232.8,0.30942]
[1736894430276,0.30943,3232.9,3232.8,0.80002]
[1736894430677,0.30942,3233.0,3232.9,0.30941]
[1736894430977,0.30942,3233.0,3232.9,1.46048954]
[1736894433578,0.31218,3233.0,3232.9,1.46048954]
[1736894435375,0.00276,3233.0,3232.9,1.46048954]
[1736894435577,0.31217,3233.0,3232.9,1.46048954]
[1736894435779,0.31217,3233.0,3232.9,1.70971324]
[1736894435974,0.00276,3233.0,3232.9,1.70971324]
[1736894439689,0.00276,3233.0,3232.9,2.86079278]
[1736894440482,0.00276,3233.0,3232.9,1.70971324]
[1736894441393,0.00276,3233.0,3232.9,2.86079278]
[1736894443393,0.00276,3233.0,3232.9,6.06859278]
[1736894443595,7.26627089,3233.9,3232.9,5.75918278]
[1736894443891,0.467,3233.8,3233.6,0.30935]
[1736894444187,0.467,3233.8,3233.7,0.30935]
[1736894444793,0.77634,3233.8,3233.7,0.30935]
[1736894447291,0.467,3233.8,3233.7,1.46042954]
[1736894448803,0.467,3233.8,3233.7,1.95402954]
[1736894449196,0.92,3233.8,3233.7,1.95402954]
[1736894450797,0.92,3233.8,3233.7,2.20643006]
[1736894451300,1.22934,3233.8,3233.7,1.95402954]
[1736894452601,0.467,3233.8,3233.7,1.95402954]
[1736894457908,0.78391,3234.1,3234.0,0.30932]
[1736894458209,0.78391,3234.1,3234.0,1.46039954]
[1736894458909,0.78391,3234.1,3234.0,0.30932]
[1736894459111,0.78391,3234.1,3234.0,1.46039954]
[1736894462511,0.78391,3234.1,3234.0,2.61147908]
[1736894462713,0.78391,3234.1,3234.0,1.46039954]
[1736894463719,0.78391,3234.1,3234.0,1.15107954]
[1736894465723,0.78391,3234.1,3234.0,1.46039954]
[1736894466913,0.78391,3234.1,3234.0,1.94679954]
[1736894467814,0.78391,3234.1,3234.0,1.15107954]
[1736894468117,0.78391,3234.1,3234.0,1.46039954]
[1736894468513,0.78391,3234.1,3234.0,1.94729954]
[1736894473622,0.9631,3234.4,3234.0,1.63797954]
[1736894473923,1.27238,3234.4,3234.3,1.46036954]
[1736894475533,1.27238,3234.4,3234.3,1.15107954]
[1736894475723,1.27238,3234.4,3234.3,1.46036954]
[1736894475920,4.34106582,3234.4,3233.9,3.2078]
[1736894476126,3.2078,3234.1,3233.6,4.79267417]
[1736894476325,0.30935,3233.7,3233.6,5.94375371]
[1736894476723,3.68731582,3233.7,3233.6,5.94375371]
[1736894476926,3.68731582,3233.7,3233.6,1.15107954]
[1736894477628,0.30935,3233.7,3233.6,1.15107954]
[1736894479926,0.30936,3233.6,3233.5,0.30936]
[1736894480126,0.30936,3233.6,3233.5,1.46043954]
[1736894482732,1.3182,3233.9,3233.5,1.15107954]
[1736894483030,1.62753,3233.9,3233.8,1.15107954]
[1736894483326,5.10713095,3233.9,3233.8,1.15107954]
[1736894484735,4.26423095,3233.9,3233.8,1.15107954]
[1736894485030,0.78463,3233.9,3233.8,1.15107954]
[1736894486626,0.78463,3233.9,3233.8,1.60977954]
[1736894488426,0.78463,3233.9,3233.8,1.91911954]
[1736894489132,0.78463,3233.9,3233.8,1.60977954]
[1736894489533,0.78463,3233.9,3233.8,1.91911954]
[1736894489830,0.78463,3233.9,3233.8,1.60977954]
[1736894491028,0.78463,3233.9,3233.8,1.91911954]
[1736894494840,0.30933,3233.9,3233.8,1.91911954]
[1736894522360,0.30933,3233.9,3233.8,1.60977954]
[1736894522765,0.30933,3233.9,3233.8,1.91911954]
[1736894534075,3.2078,3234.3,3233.8,1.60977954]
[1736894534276,0.30931,3234.2,3234.1,0.3093]
[1736894535377,0.3093,3234.3,3234.2,0.30929]
[1736894539978,0.30929,3234.4,3234.3,0.30928]
[1736894540277,0.30929,3234.4,3234.3,1.46035954]
[1736894543177,0.30929,3234.4,3234.3,1.15107954]
[1736894547383,0.30929,3234.4,3234.3,1.46036954]
[1736894548487,0.30929,3234.4,3234.3,1.15107954]
[1736894552875,0.3093,3234.2,3234.1,1.209]
[1736894554284,0.3093,3234.2,3234.1,1.6734]
[1736894556683,0.3093,3234.2,3234.1,2.82447954]
[1736894561391,0.3093,3234.2,3234.1,1.61547954]
[1736894564493,0.3093,3234.2,3234.1,0.4644]
[1736894568091,0.3093,3234.2,3234.1,0.77371]
[1736894569099,0.30929,3234.4,3234.3,0.30928]
[1736894569298,0.30929,3234.4,3234.3,1.46035954]
[1736894569489,3.51708,3234.5,3234.4,0.30928]
[1736894569690,3.51708,3234.5,3234.4,0.76128]
[1736894570199,3.51708,3234.5,3234.4,1.22618]
[1736894571800,0.30928,3234.5,3234.4,1.22618]
[1736894575702,0.30928,3234.5,3234.4,1.68678]
[1736894579009,0.30925,3234.9,3234.8,0.30923]
[1736894579709,0.30925,3234.9,3234.8,1.68843]
[1736894582920,3.51703,3235.0,3234.9,0.30923]
[1736894583111,0.30921,3235.2,3235.1,0.3092]
[1736894583310,0.3092,3235.3,3235.2,1.46026954]
[1736894583511,0.3092,3235.3,3235.2,45.96356954]
[1736894583712,4.45165,3235.9,3235.2,45.96356954]
[1736894583713,3.2078,3235.9,3235.2,45.65437954]
[1736894583910,4.42283428,3236.4,3235.8,1.15107954]
[1736894584112,0.30912,3236.1,3236.0,1.15107954]
[1736894587518,0.30917,3235.5,3235.4,0.79467]
[1736894588414,0.30917,3235.5,3235.4,0.79468]
[1736894589521,0.30917,3235.5,3235.4,1.94575954]
[1736894590817,0.30917,3235.5,3235.4,1.63657954]
[1736894592916,0.30917,3235.5,3235.4,1.94575954]
[1736894594919,0.30917,3235.5,3235.4,2.44295954]
[1736894598725,1.25436,3235.9,3235.4,2.13377954]
[1736894598925,0.30917,3235.6,3235.5,0.30916]
[1736894602834,0.30916,3235.7,3235.6,0.30915]
[1736894607334,0.30915,3235.8,3235.7,0.30915]
[1736894614439,0.30915,3235.8,3235.7,1.46022954]
[1736894616640,0.30915,3235.8,3235.7,1.91792954]
[1736894617247,0.4815,3235.9,3235.7,1.60877954]
[1736894617436,0.79064,3235.9,3235.8,0.30915]
[1736894620845,0.4815,3235.9,3235.8,0.30915]
[1736894621047,3.2078,3236.3,3235.8,5.61222954]
[1736894621344,0.30908,3236.6,3236.5,0.30906]
[1736894621543,0.30908,3236.6,3236.5,1.46013954]
[1736894621941,0.30908,3236.6,3236.5,42.26013954]
[1736894623636,0.4789,3236.9,3236.5,41.95107954]
[1736894623840,0.78794,3236.9,3236.8,1.46012954]
[1736894624044,0.78794,3236.9,3236.8,1.15107954]
[1736894624241,4.36403998,3237.0,3236.9,0.30904]
[1736894624646,0.30904,3237.0,3236.9,0.30904]
[1736894625046,0.30904,3237.0,3236.8,1.15107954]
[1736894625047,0.30903,3237.1,3237.0,0.30902]
[1736894625341,0.30903,3237.1,3237.0,1.46009954]
[1736894625543,0.76632,3237.2,3237.1,0.30902]
[1736894626246,0.30902,3237.2,3237.1,0.30902]
[1736894626442,0.30902,3237.2,3237.1,0.76282]
[1736894627637,0.30902,3237.2,3237.1,0.4538]
[1736894627839,3.2078,3237.4,3237.1,1.15107954]
[1736894628035,0.4811,3237.3,3236.7,0.4817]
[1736894628236,1.15107954,3236.8,3236.0,7.19423393]
[1736894628442,0.30911,3236.2,3236.0,7.19423393]
[1736894628641,3.2078,3236.1,3236.0,8.34531347]
[1736894628939,6.88631831,3236.1,3236.0,1.15107954]
[1736894629140,8.51692,3236.1,3236.0,1.15107954]
[1736894629343,11.57719831,3236.1,3235.8,2.42223999]
[1736894629643,0.30914,3235.9,3235.8,2.42223999]
[1736894630550,0.30914,3235.9,3235.8,43.22223999]
[1736894630747,3.59905054,3235.9,3235.8,43.22223999]
[1736894631451,0.30914,3235.9,3235.8,43.22223999]
[1736894632946,0.30914,3235.9,3235.8,43.23722999]
[1736894637752,3.86953894,3235.9,3235.8,40.81499]
[1736894639550,3.86953894,3235.9,3235.8,0.01499]
[1736894639953,3.86953894,3235.9,3235.8,1e-05]
[1736894640455,8.86953894,3235.9,3235.8,1e-05]
[1736894648658,12.07733894,3235.9,3235.8,1e-05]
[1736894649359,13.22455834,3235.9,3235.8,1e-05]
[1736894650857,13.68295834,3235.9,3235.8,1e-05]
[1736894651267,7.61675016,3235.9,3234.6,1.1472194]
[1736894651562,0.30925,3234.7,3234.6,1.1472194]
[1736894651766,0.30925,3234.7,3234.6,41.9472194]
[1736894651965,3.61627121,3234.7,3234.6,41.9472194]
[1736894652464,0.30931,3234.1,3234.0,3.2078]
[1736894652658,0.30931,3234.1,3234.0,4.3550194]
[1736894652863,0.30931,3234.1,3234.0,45.1550194]
[1736894653465,0.30931,3234.1,3234.0,46.43270891]
[1736894654367,0.30931,3234.1,3234.0,43.22490891]
[1736894654666,3.74530636,3234.1,3234.0,43.22490891]
[1736894659669,3.74530636,3234.1,3234.0,40.8]
[1736894673483,3.74530636,3234.1,3234.0,41.94795277]
[1736894689892,0.77322,3234.4,3234.0,43.09590554]
[1736894690092,0.30929,3234.4,3234.3,1.45723277]
[1736894693887,0.30929,3234.4,3234.3,1.14795277]
[1736894707604,0.30932,3234.0,3233.9,4.634]
[1736894707807,0.30932,3234.0,3233.9,5.78195277]
[1736894708603,0.30932,3234.0,3233.9,2.57415277]
[1736894709407,3.8163695,3234.0,3233.9,2.08885277]
[1736894724612,3.8163695,3234.0,3233.9,0.4524]
[1736894724819,0.30934,3233.8,3233.7,42.41665277]
[1736894726421,0.30934,3233.8,3233.7,40.8]
[1736894733117,0.30937,3233.4,3233.3,3.2078]
[1736894733416,0.7734,3233.6,3233.2,0.47]
[1736894733417,0.30938,3233.3,3233.2,0.47]
[1736894733622,0.79118,3233.3,3233.2,0.47]
[1736894733824,4.30443211,3233.3,3233.2,0.47]
[1736894734419,3.99505211,3233.3,3233.1,42.41675277]
[1736894734621,0.77889,3233.2,3233.1,42.41675277]
[1736894735625,4.36618732,3233.2,3233.1,40.8]
[1736894736318,0.30941,3233.0,3232.9,0.47]
[1736894736920,0.30941,3233.0,3232.9,41.27]
[1736894737820,3.5344918,3233.0,3232.9,41.27]
[1736894738020,3.5344918,3233.0,3232.9,0.47]
[1736894742627,3.5344918,3233.0,3232.9,41.27]
[1736894742827,3.5344918,3233.0,3232.9,0.47]
[1736894744428,3.2250818,3233.0,3232.8,41.2713]
[1736894744627,0.76942,3232.9,3232.8,41.2713]
[1736894745127,4.11756177,3232.9,3232.8,41.2713]
[1736894745329,0.30944,3232.7,3232.6,0.4537]
[1736894745531,0.30944,3232.7,3232.6,0.9248]
[1736894745828,0.30944,3232.7,3232.6,41.7248]
[1736894746025,3.85740974,3232.7,3232.6,41.7248]
[1736894746721,0.30949,3232.2,3232.1,3.2078]
[1736894746928,0.30949,3232.2,3232.1,4.35575277]
[1736894751132,0.30949,3232.2,3232.1,3.2078]
[1736894751834,0.30949,3232.2,3232.1,44.0078]
[1736894752228,0.30949,3232.2,3232.1,40.8]
[1736894755634,5.04625903,3232.2,3232.1,40.8]
[1736894756134,0.3095,3232.1,3232.0,1.4279]
[1736894756532,3.75139677,3232.1,3232.0,1.4279]
[1736894759435,3.75139677,3232.1,3232.0,0.4868]
[1736894777343,0.30952,3231.9,3231.8,0.4842]
[1736894777748,3.8577582,3231.9,3231.8,0.4842]
[1736894780852,3.8577582,3231.9,3231.8,1.63215277]
[1736894781054,0.30952,3231.9,3231.8,1.94168277]
[1736894781255,0.28816423,3232.4,3232.3,0.30947]
[1736894781549,0.4566,3233.3,3231.8,3.99810554]
[1736894781550,0.77354,3233.0,3232.4,1.61515277]
[1736894781749,3.2078,3233.2,3232.8,1.14795277]
[1736894782052,0.30938,3233.4,3233.1,1.14795277]
[1736894782250,0.30933,3233.9,3233.4,0.30937]
[1736894782553,0.30936,3233.6,3233.5,0.483]
[1736894782745,0.30936,3233.6,3233.5,1.63095277]
[1736894783356,0.30936,3233.6,3233.5,0.483]
[1736894784455,0.30936,3233.6,3233.5,0.9476]
[1736894784957,0.30936,3233.6,3233.5,1.4034]
[1736894788158,0.77328,3234.1,3233.5,1.4034]
[1736894788459,0.30936,3233.6,3233.5,1.4034]
[1736894789754,0.30936,3233.6,3233.5,42.2034]
[1736894793661,0.30936,3233.6,3233.5,43.4244]
[1736894801459,0.30936,3233.6,3233.5,43.73376]
[1736894805956,0.30936,3233.7,3233.6,0.30934]
[1736894806160,0.30936,3233.7,3233.6,1.45760482]
[1736894806767,0.30936,3233.7,3233.6,42.25760482]
[1736894807167,0.9487,3234.0,3233.6,41.94826482]
[1736894807369,1.25803,3234.0,3233.9,0.30933]
[1736894808064,1.25803,3234.0,3233.9,41.10933]
[1736894812775,1.25803,3234.0,3233.9,41.59403]
[1736894812975,1.25803,3234.0,3233.9,42.74229482]
[1736894813866,1.25803,3234.0,3233.9,41.59403]
[1736894816376,0.78753,3234.0,3233.9,41.59403]
[1736894819171,0.78753,3234.0,3233.9,41.2847]
[1736894837078,0.30933,3234.0,3233.9,41.2847]
[1736894860799,1.24686,3234.2,3233.9,41.2847]
[1736894860800,0.4736,3234.2,3233.9,41.2847]
[1736894861405,0.4736,3234.2,3234.0,0.4629]
[1736894873324,0.4736,3234.2,3234.1,40.8]
[1736894879729,0.4815,3234.4,3234.1,40.8]
[1736894880628,0.4786,3234.3,3234.1,40.8]
[1736894883029,3.2078,3234.6,3234.1,40.8]
[1736894883334,3.48427193,3234.4,3234.1,40.8]
[1736894883532,3.48427193,3234.4,3234.1,41.94826482]
[1736894883733,3.2078,3234.6,3234.1,41.94826482]
[1736894884733,3.2078,3234.6,3234.3,1.14826482]
[1736894885227,3.2078,3234.6,3234.4,0.4973]
[1736894885428,3.2078,3234.6,3234.5,40.8]
[1736894886540,2.09266482,3235.3,3234.5,42.89606482]
[1736894886728,2.09266482,3235.3,3234.8,1.14826482]
[1736894887129,2.09266482,3235.3,3234.9,0.4826]
[1736894888135,2.09266482,3235.3,3235.0,0.9635]
[1736894889039,1.61526482,3235.3,3235.0,0.9635]
[1736894889236,1.14826482,3235.3,3235.0,0.9635]
[1736894889436,3.51138711,3235.4,3235.0,2.11176482]
[1736894889636,3.2078,3235.4,3235.0,2.11176482]
[1736894894644,3.2078,3235.4,3235.2,1.14826482]
[1736894895143,3.2078,3235.4,3235.3,41.2691]
[1736894897340,3.2078,3235.4,3235.3,42.4781]
[1736894898938,3.51698,3235.4,3235.3,42.4781]
[1736894900045,3.51698,3235.4,3235.3,42.78729]
[1736894900644,3.51698,3235.4,3235.3,42.4781]
[1736894901941,0.30918,3235.4,3235.3,42.4781]
[1736894904845,0.30918,3235.4,3235.3,41.2691]
[1736894914771,0.3092,3235.2,3235.1,1.45747482]
[1736894915145,0.3092,3235.2,3235.1,42.25747482]
[1736894915347,0.7871,3235.2,3235.1,42.25747482]
[1736894916348,0.3092,3235.2,3235.1,42.25747482]
[1736894918150,0.3092,3235.2,3235.1,43.47047482]
[1736894930358,4.24456993,3235.2,3235.0,1.14826482]
[1736894930561,0.76841,3235.1,3235.0,1.14826482]
[1736894932458,0.76841,3235.1,3235.0,41.94826482]
[1736894932854,0.76841,3235.1,3235.0,42.25748482]
[1736894933757,0.76841,3235.1,3235.0,41.94826482]
[1736894934158,0.76841,3235.1,3235.0,42.25748482]
[1736894934761,0.30921,3235.1,3235.0,42.25748482]
[1736894935764,0.30921,3235.1,3235.0,42.70928482]
[1736894936764,0.30921,3235.1,3235.0,41.56102]
[1736894936966,0.30921,3235.1,3235.0,42.70928482]
[1736894937167,0.30921,3235.1,3235.0,41.56102]
[1736894937471,0.30921,3235.1,3235.0,42.70928482]
[1736894938562,0.30921,3235.1,3235.0,41.56102]
[1736894938762,0.30921,3235.1,3235.0,42.70928482]
[1736894941868,0.3092,3235.3,3235.2,0.3092]
[1736894942068,0.3092,3235.3,3235.2,1.45746482]
[1736894942572,0.3092,3235.3,3235.2,42.25746482]
[1736894947267,0.3092,3235.3,3235.2,41.94826482]
[1736894951372,3.2078,3235.7,3235.2,42.40506482]
[1736894951580,0.30915,3235.8,3235.6,1.14826482]
[1736894951880,3.2078,3236.1,3235.7,2.05686482]
[1736894952071,3.51692,3236.1,3236.0,1.45739482]
[1736894952477,3.51692,3236.1,3236.0,42.25739482]
[1736894953380,0.3091,3236.4,3236.3,0.30908]
[1736894953580,0.3091,3236.4,3236.3,1.45734482]
[1736894954180,3.2078,3236.9,3236.3,2.35826482]
[1736894954381,0.30905,3236.8,3236.7,1.14826482]
[1736894954879,0.30905,3236.8,3236.7,1.60646482]
[1736894955372,3.2078,3236.9,3236.5,1.14826482]
[1736894955577,0.30907,3236.6,3236.5,1.45733482]
[1736894956879,0.30907,3236.6,3236.5,1.14826482]
[1736894964382,0.30907,3236.6,3236.5,1.45734482]
[1736894964684,0.30907,3236.6,3236.5,42.25734482]
[1736894965983,0.30907,3236.6,3236.5,41.94826482]
[1736894968786,0.30907,3236.6,3236.5,42.25734482]